[Event "Titled Tuesday Blitz November 14 Late 2023"]
[White "Gimenez Aguirre, Alejo Ismael"]
[Black "FM_Kappeler"]
[WhiteFideId "32041667"]
[WhiteElo "2588"]
[BlackElo "2314"]
[Result "1-0"]
[Round "4"]
[TimeControl "180+1"]
[Date "2023.11.14"]
[WhiteClock "0:01:24"]
[BlackClock "0:00:00"]
[Board "74"]

1. e4 {[%clk 0:02:59]}  c5 {[%clk 0:02:59]} 2. Nf3 {[%clk 0:02:58]}  e6 {[%clk 0:02:59]} 3. d4 {[%clk 0:02:58]}  cxd4 {[%clk 0:03:00]} 4. Nxd4 {[%clk 0:02:59]}  Nf6 {[%clk 0:03:00]} 5. Bd3 {[%clk 0:02:58]}  Nc6 {[%clk 0:02:59]} 6. Nxc6 {[%clk 0:02:58]}  bxc6 {[%clk 0:02:59]} 7. O-O {[%clk 0:02:59]}  e5 {[%clk 0:02:58]} 8. f4 {[%clk 0:02:57]}  d6 {[%clk 0:02:55]} 9. Kh1 {[%clk 0:02:56]}  Be7 {[%clk 0:02:55]} 10. Nd2 {[%clk 0:02:55]}  O-O {[%clk 0:02:55]} 11. Nf3 {[%clk 0:02:56]}  Bg4 {[%clk 0:02:48]} 12. h3 {[%clk 0:02:55]}  Bxf3 {[%clk 0:02:15]} 13. Qxf3 {[%clk 0:02:48]}  Rb8 {[%clk 0:02:13]} 14. b3 {[%clk 0:02:36]}  a5 {[%clk 0:02:12]} 15. Bb2 {[%clk 0:02:35]}  exf4 {[%clk 0:02:05]} 16. Qxf4 {[%clk 0:02:35]}  Nd7 {[%clk 0:01:50]} 17. Rf3 {[%clk 0:02:28]}  Bf6 {[%clk 0:01:48]} 18. Bxf6 {[%clk 0:02:26]}  Qxf6 {[%clk 0:01:42]} 19. Qc1 {[%clk 0:02:25]}  Qe5 {[%clk 0:01:40]} 20. Rf5 {[%clk 0:02:25]}  Qe7 {[%clk 0:01:36]} 21. Qf4 {[%clk 0:02:23]}  Ne5 {[%clk 0:01:35]} 22. Be2 {[%clk 0:02:13]}  h6 {[%clk 0:01:33]} 23. Rf1 {[%clk 0:02:09]}  a4 {[%clk 0:01:32]} 24. Qg3 {[%clk 0:02:06]}  axb3 {[%clk 0:01:28]} 25. axb3 {[%clk 0:02:07]}  Rb4 {[%clk 0:01:23]} 26. R5f4 {[%clk 0:02:02]}  Ng6 {[%clk 0:01:19]} 27. Rg4 {[%clk 0:02:01]}  Rxe4 {[%clk 0:01:15]} 28. Rxe4 {[%clk 0:01:58]}  Qxe4 {[%clk 0:01:15]} 29. Bd3 {[%clk 0:01:59]}  Qe5 {[%clk 0:01:11]} 30. Qg4 {[%clk 0:01:58]}  h5 {[%clk 0:01:06]} 31. Qf3 {[%clk 0:01:56]}  Ne7 {[%clk 0:00:48]} 32. Qf2 {[%clk 0:01:56]}  Nd5 {[%clk 0:00:43]} 33. Re1 {[%clk 0:01:55]}  Qf6 {[%clk 0:00:41]} 34. Qg3 {[%clk 0:01:50]}  g6 {[%clk 0:00:38]} 35. Rf1 {[%clk 0:01:49]}  Qe5 {[%clk 0:00:37]} 36. Qf3 {[%clk 0:01:48]}  f5 {[%clk 0:00:32]} 37. Bc4 {[%clk 0:01:47]}  Kg7 {[%clk 0:00:29]} 38. Bxd5 {[%clk 0:01:47]}  cxd5 {[%clk 0:00:29]} 39. Rd1 {[%clk 0:01:47]}  Qe4 {[%clk 0:00:27]} 40. Rxd5 {[%clk 0:01:43]}  Qxf3 {[%clk 0:00:26]} 41. gxf3 {[%clk 0:01:44]}  Rc8 {[%clk 0:00:26]} 42. c4 {[%clk 0:01:44]}  Rb8 {[%clk 0:00:17]} 43. Rxd6 {[%clk 0:01:43]}  Rxb3 {[%clk 0:00:17]} 44. Kg2 {[%clk 0:01:44]}  Rc3 {[%clk 0:00:17]} 45. Rc6 {[%clk 0:01:43]}  Kh6 {[%clk 0:00:17]} 46. h4 {[%clk 0:01:42]}  f4 {[%clk 0:00:15]} 47. Rc7 {[%clk 0:01:40]}  Rc2+ {[%clk 0:00:14]} 48. Kg1 {[%clk 0:01:41]}  Rc1+ {[%clk 0:00:13]} 49. Kf2 {[%clk 0:01:41]}  Rc2+ {[%clk 0:00:13]} 50. Kf1 {[%clk 0:01:42]}  Rh2 {[%clk 0:00:13]} 51. c5 {[%clk 0:01:37]}  Rxh4 {[%clk 0:00:06]} 52. Kg2 {[%clk 0:01:37]}  g5 {[%clk 0:00:05]} 53. Rc8 {[%clk 0:01:29]}  g4 {[%clk 0:00:05]} 54. c6 {[%clk 0:01:30]}  gxf3+ {[%clk 0:00:04]} 55. Kxf3 {[%clk 0:01:29]}  Rh3+ {[%clk 0:00:04]} 56. Kxf4 {[%clk 0:01:25]}  Rc3 {[%clk 0:00:04]} 57. Ke4 {[%clk 0:01:26]}  Rc1 {[%clk 0:00:03]} 58. Kd5 {[%clk 0:01:25]}  h4 {[%clk 0:00:04]} 59. Kd6 {[%clk 0:01:25]}  h3 {[%clk 0:00:04]} 60. Rh8+ {[%clk 0:01:25]}  Kg7 {[%clk 0:00:01]} 61. Rxh3 {[%clk 0:01:26]}  Rd1+ {[%clk 0:00:01]} 62. Kc7 {[%clk 0:01:25]}  Rc1 {[%clk 0:00:00]} 63. Rf3 {[%clk 0:01:24]} 1-0


[Site "https://www.chess.com"]

[Event "Titled Tuesday Blitz November 14 Late 2023"]
[White "Makarian, Rudik"]
[Black "Aarakan, J"]
[WhiteFideId "44105681"]
[BlackFideId "9946276"]
[WhiteElo "2954"]
[BlackElo "2239"]
[Result "1-0"]
[Round "4"]
[TimeControl "180+1"]
[Date "2023.11.14"]
[WhiteClock "0:02:25"]
[BlackClock "0:01:11"]
[Board "77"]

1. d4 {[%clk 0:02:59]}  d5 {[%clk 0:03:00]} 2. c4 {[%clk 0:02:59]}  e6 {[%clk 0:03:00]} 3. Nf3 {[%clk 0:03:00]}  Nf6 {[%clk 0:03:00]} 4. Nc3 {[%clk 0:03:00]}  Be7 {[%clk 0:03:00]} 5. Bf4 {[%clk 0:03:00]}  O-O {[%clk 0:03:01]} 6. e3 {[%clk 0:03:01]}  c5 {[%clk 0:03:01]} 7. dxc5 {[%clk 0:03:01]}  Bxc5 {[%clk 0:03:01]} 8. Qc2 {[%clk 0:03:00]}  Nc6 {[%clk 0:02:58]} 9. a3 {[%clk 0:03:00]}  Be7 {[%clk 0:02:56]} 10. Rd1 {[%clk 0:02:58]}  Qb6 {[%clk 0:02:43]} 11. cxd5 {[%clk 0:02:58]}  exd5 {[%clk 0:02:42]} 12. Nxd5 {[%clk 0:02:55]}  Nxd5 {[%clk 0:02:42]} 13. Rxd5 {[%clk 0:02:55]}  Be6 {[%clk 0:02:42]} 14. Rb5 {[%clk 0:02:55]}  Qd8 {[%clk 0:02:41]} 15. Bd3 {[%clk 0:02:54]}  h6 {[%clk 0:02:37]} 16. O-O {[%clk 0:02:53]}  Rc8 {[%clk 0:02:36]} 17. Qe2 {[%clk 0:02:51]}  b6 {[%clk 0:02:34]} 18. Bf5 {[%clk 0:02:49]}  a6 {[%clk 0:02:27]} 19. Bxe6 {[%clk 0:02:48]}  fxe6 {[%clk 0:02:21]} 20. Rh5 {[%clk 0:02:47]}  Bf6 {[%clk 0:02:15]} 21. Qxa6 {[%clk 0:02:32]}  Bxb2 {[%clk 0:01:54]} 22. Rb5 {[%clk 0:02:30]}  Bf6 {[%clk 0:01:49]} 23. Qxb6 {[%clk 0:02:30]}  Qxb6 {[%clk 0:01:44]} 24. Rxb6 {[%clk 0:02:30]}  e5 {[%clk 0:01:45]} 25. Bg3 {[%clk 0:02:30]}  e4 {[%clk 0:01:42]} 26. Nd2 {[%clk 0:02:29]}  Rfe8 {[%clk 0:01:37]} 27. Nc4 {[%clk 0:02:29]}  Re6 {[%clk 0:01:24]} 28. Nd6 {[%clk 0:02:27]}  Rc7 {[%clk 0:01:12]} 29. Nxe4 {[%clk 0:02:25]}  Rxe4 {[%clk 0:01:11]} 1-0


[Site "https://www.chess.com"]

[Event "Titled Tuesday Blitz November 14 Late 2023"]
[White "Urazayev, Arystanbek"]
[Black "Osmak, Yuliia"]
[WhiteFideId "13709810"]
[BlackFideId "14101602"]
[WhiteElo "2834"]
[BlackElo "2503"]
[Result "1-0"]
[Round "4"]
[TimeControl "180+1"]
[Date "2023.11.14"]
[WhiteClock "0:00:37"]
[BlackClock "0:00:00"]
[Board "78"]

1. e4 {[%clk 0:02:57]}  c5 {[%clk 0:02:59]} 2. Nc3 {[%clk 0:02:58]}  a6 {[%clk 0:02:55]} 3. g3 {[%clk 0:02:58]}  b5 {[%clk 0:02:54]} 4. Bg2 {[%clk 0:02:58]}  Bb7 {[%clk 0:02:54]} 5. d4 {[%clk 0:02:56]}  cxd4 {[%clk 0:02:52]} 6. Qxd4 {[%clk 0:02:57]}  Nc6 {[%clk 0:02:52]} 7. Qe3 {[%clk 0:02:57]}  d6 {[%clk 0:02:46]} 8. Nge2 {[%clk 0:02:55]}  Nf6 {[%clk 0:02:45]} 9. O-O {[%clk 0:02:54]}  g6 {[%clk 0:02:43]} 10. Rd1 {[%clk 0:02:55]}  Qb8 {[%clk 0:02:35]} 11. Nd5 {[%clk 0:02:49]}  Bg7 {[%clk 0:02:31]} 12. Nxf6+ {[%clk 0:02:49]}  Bxf6 {[%clk 0:02:31]} 13. Qh6 {[%clk 0:02:50]}  Ne5 {[%clk 0:02:23]} 14. h3 {[%clk 0:02:46]}  Qc7 {[%clk 0:02:20]} 15. c3 {[%clk 0:02:46]}  Qc4 {[%clk 0:01:45]} 16. Nd4 {[%clk 0:02:46]}  O-O-O {[%clk 0:01:31]} 17. Bg5 {[%clk 0:02:34]}  Bxg5 {[%clk 0:01:27]} 18. Qxg5 {[%clk 0:02:34]}  f6 {[%clk 0:01:25]} 19. Qe3 {[%clk 0:02:34]}  Kb8 {[%clk 0:01:19]} 20. a4 {[%clk 0:02:27]}  b4 {[%clk 0:01:16]} 21. Bf1 {[%clk 0:02:12]}  Qc5 {[%clk 0:01:13]} 22. cxb4 {[%clk 0:02:10]}  Qxb4 {[%clk 0:01:14]} 23. Ra3 {[%clk 0:02:09]}  Ka8 {[%clk 0:00:44]} 24. Rb3 {[%clk 0:02:00]}  Qa5 {[%clk 0:00:41]} 25. Bb5 {[%clk 0:02:00]}  axb5 {[%clk 0:00:37]} 26. axb5 {[%clk 0:02:01]}  Nc4 {[%clk 0:00:23]} 27. Qe2 {[%clk 0:01:29]}  Rc8 {[%clk 0:00:22]} 28. Rc1 {[%clk 0:01:16]}  Qa4 {[%clk 0:00:14]} 29. Nc6 {[%clk 0:01:09]}  Bxc6 {[%clk 0:00:13]} 30. Qd1 {[%clk 0:00:44]}  Bxe4 {[%clk 0:00:08]} 31. Ra1 {[%clk 0:00:43]}  Nxb2 {[%clk 0:00:04]} 32. Rxb2 {[%clk 0:00:38]}  Qxa1 {[%clk 0:00:01]} 33. Qxa1+ {[%clk 0:00:39]}  Kb8 {[%clk 0:00:02]} 34. b6 {[%clk 0:00:37]}  Rc4 {[%clk 0:00:01]} 35. Qa7+ {[%clk 0:00:36]}  Kc8 {[%clk 0:00:00]} 36. b7+ {[%clk 0:00:37]} 1-0


[Site "https://www.chess.com"]

[Event "Titled Tuesday Blitz November 14 Late 2023"]
[White "Slaby, Jerzy"]
[Black "YouShallNotPass001"]
[WhiteFideId "1121405"]
[WhiteElo "2661"]
[BlackElo "2482"]
[Result "1-0"]
[Round "4"]
[TimeControl "180+1"]
[Date "2023.11.14"]
[WhiteClock "0:00:24"]
[BlackClock "0:02:03"]
[Board "82"]

1. Nf3 {[%clk 0:00:34]}  Nf6 {[%clk 0:02:59]} 2. c4 {[%clk 0:00:35]}  e6 {[%clk 0:03:00]} 3. Nc3 {[%clk 0:00:35]}  d5 {[%clk 0:03:00]} 4. d4 {[%clk 0:00:35]}  Bb4 {[%clk 0:03:00]} 5. g3 {[%clk 0:00:36]}  dxc4 {[%clk 0:02:59]} 6. Bg2 {[%clk 0:00:36]}  b5 {[%clk 0:02:59]} 7. O-O {[%clk 0:00:36]}  Bxc3 {[%clk 0:02:59]} 8. bxc3 {[%clk 0:00:36]}  Bb7 {[%clk 0:02:59]} 9. a4 {[%clk 0:00:36]}  a6 {[%clk 0:02:57]} 10. Ba3 {[%clk 0:00:37]}  Nd5 {[%clk 0:02:53]} 11. Qc1 {[%clk 0:00:33]}  f6 {[%clk 0:02:50]} 12. Nd2 {[%clk 0:00:33]}  Nd7 {[%clk 0:02:45]} 13. Rb1 {[%clk 0:00:34]}  c6 {[%clk 0:02:40]} 14. Nxc4 {[%clk 0:00:34]}  Qb8 {[%clk 0:02:27]} 15. Nd6+ {[%clk 0:00:33]}  Kd8 {[%clk 0:02:27]} 16. Nf7+ {[%clk 0:00:33]}  Kc7 {[%clk 0:02:28]} 17. Nxh8 {[%clk 0:00:34]}  Qxh8 {[%clk 0:02:27]} 18. c4 {[%clk 0:00:34]}  bxc4 {[%clk 0:02:23]} 19. e4 {[%clk 0:00:34]}  N5b6 {[%clk 0:02:22]} 20. a5 {[%clk 0:00:34]}  Nc8 {[%clk 0:02:22]} 21. Qxc4 {[%clk 0:00:34]}  Na7 {[%clk 0:02:22]} 22. e5 {[%clk 0:00:33]}  Nb5 {[%clk 0:02:17]} 23. Bd6+ {[%clk 0:00:30]}  Kc8 {[%clk 0:02:13]} 24. Bxc6 {[%clk 0:00:29]}  Nxd6 {[%clk 0:02:09]} 25. Bxb7+ {[%clk 0:00:24]}  Kd8 {[%clk 0:02:08]} 26. exd6 {[%clk 0:00:25]}  Qg8 {[%clk 0:02:05]} 27. Qc7+ {[%clk 0:00:25]}  Ke8 {[%clk 0:02:05]} 28. Bxa8 {[%clk 0:00:26]}  Kf7 {[%clk 0:02:04]} 29. Qxd7+ {[%clk 0:00:25]}  Kg6 {[%clk 0:02:05]} 30. Be4+ {[%clk 0:00:24]}  f5 {[%clk 0:02:05]} 31. Bg2 {[%clk 0:00:23]}  h5 {[%clk 0:02:05]} 32. Qe7 {[%clk 0:00:24]}  h4 {[%clk 0:02:03]} 33. Rb7 {[%clk 0:00:24]} 1-0


[Site "https://www.chess.com"]

[Event "Titled Tuesday Blitz November 14 Late 2023"]
[White "Maltsevskaya, Aleksandra"]
[Black "Martin Barcelo, Carles"]
[WhiteFideId "24174041"]
[BlackFideId "24561444"]
[WhiteElo "2651"]
[BlackElo "2478"]
[Result "1-0"]
[Round "4"]
[TimeControl "180+1"]
[Date "2023.11.14"]
[WhiteClock "0:01:29"]
[BlackClock "0:00:56"]
[Board "83"]

1. Nf3 {[%clk 0:03:00]}  d5 {[%clk 0:02:57]} 2. g3 {[%clk 0:03:01]}  c5 {[%clk 0:02:54]} 3. d3 {[%clk 0:03:02]}  Nc6 {[%clk 0:02:55]} 4. Bg2 {[%clk 0:03:02]}  e5 {[%clk 0:02:55]} 5. O-O {[%clk 0:03:03]}  f6 {[%clk 0:02:56]} 6. e4 {[%clk 0:03:04]}  Nge7 {[%clk 0:02:55]} 7. exd5 {[%clk 0:03:04]}  Nxd5 {[%clk 0:02:55]} 8. Nbd2 {[%clk 0:03:04]}  Be6 {[%clk 0:02:55]} 9. Nc4 {[%clk 0:03:05]}  Be7 {[%clk 0:02:55]} 10. c3 {[%clk 0:03:06]}  O-O {[%clk 0:02:55]} 11. Re1 {[%clk 0:03:06]}  Qd7 {[%clk 0:02:54]} 12. a4 {[%clk 0:03:02]}  Nb6 {[%clk 0:02:53]} 13. Ne3 {[%clk 0:03:00]}  Rad8 {[%clk 0:02:51]} 14. a5 {[%clk 0:03:01]}  Nd5 {[%clk 0:02:50]} 15. Nh4 {[%clk 0:02:44]}  f5 {[%clk 0:02:43]} 16. Nhxf5 {[%clk 0:02:34]}  Rxf5 {[%clk 0:02:27]} 17. Nxf5 {[%clk 0:02:34]}  Bxf5 {[%clk 0:02:28]} 18. Be3 {[%clk 0:02:18]}  Nxe3 {[%clk 0:02:25]} 19. Rxe3 {[%clk 0:02:19]}  Bxd3 {[%clk 0:02:20]} 20. a6 {[%clk 0:02:14]}  e4 {[%clk 0:01:57]} 21. Qb3+ {[%clk 0:02:09]}  c4 {[%clk 0:01:54]} 22. Qxb7 {[%clk 0:02:09]}  Qxb7 {[%clk 0:01:54]} 23. axb7 {[%clk 0:02:10]}  Rb8 {[%clk 0:01:54]} 24. Bxe4 {[%clk 0:02:09]}  Bxe4 {[%clk 0:01:54]} 25. Rxe4 {[%clk 0:02:10]}  Rxb7 {[%clk 0:01:53]} 26. Rxc4 {[%clk 0:02:11]}  Ne5 {[%clk 0:01:53]} 27. Rc8+ {[%clk 0:02:07]}  Kf7 {[%clk 0:01:53]} 28. b4 {[%clk 0:02:07]}  Bf6 {[%clk 0:01:51]} 29. Ra8 {[%clk 0:02:04]}  Nc6 {[%clk 0:01:48]} 30. Ra6 {[%clk 0:02:03]}  Rc7 {[%clk 0:01:47]} 31. b5 {[%clk 0:02:02]}  Ne7 {[%clk 0:01:44]} 32. R6xa7 {[%clk 0:01:59]}  Rxa7 {[%clk 0:01:29]} 33. Rxa7 {[%clk 0:01:59]}  Bxc3 {[%clk 0:01:29]} 34. b6 {[%clk 0:01:59]}  Bd4 {[%clk 0:01:30]} 35. Rb7 {[%clk 0:01:55]}  Ke6 {[%clk 0:01:29]} 36. Rb8 {[%clk 0:01:54]}  Kd7 {[%clk 0:01:26]} 37. b7 {[%clk 0:01:52]}  Kc7 {[%clk 0:01:10]} 38. Rd8 {[%clk 0:01:31]}  Nc6 {[%clk 0:01:07]} 39. b8=Q+ {[%clk 0:01:31]}  Nxb8 {[%clk 0:01:05]} 40. Rxd4 {[%clk 0:01:31]}  Nd7 {[%clk 0:01:04]} 41. Rf4 {[%clk 0:01:30]}  Nf6 {[%clk 0:01:04]} 42. Rd4 {[%clk 0:01:28]}  Nd7 {[%clk 0:01:03]} 43. Kg2 {[%clk 0:01:29]}  Kd8 {[%clk 0:01:04]} 44. Re4 {[%clk 0:01:28]}  Nc5 {[%clk 0:00:57]} 45. Re2 {[%clk 0:01:28]}  Kd7 {[%clk 0:00:57]} 46. f4 {[%clk 0:01:29]}  Ne6 {[%clk 0:00:57]} 47. f5 {[%clk 0:01:29]}  Nd4 {[%clk 0:00:56]} 48. Rd2 {[%clk 0:01:29]} 1-0


[Site "https://www.chess.com"]

[Event "Titled Tuesday Blitz November 14 Late 2023"]
[White "Semenenko, Dmytry"]
[Black "aghasiyevkamal"]
[WhiteFideId "14118645"]
[WhiteElo "2389"]
[BlackElo "2584"]
[Result "0-1"]
[Round "4"]
[TimeControl "180+1"]
[Date "2023.11.14"]
[WhiteClock "0:00:00"]
[BlackClock "0:01:21"]
[Board "87"]

1. Nf3 {[%clk 0:03:00]}  d5 {[%clk 0:02:59]} 2. c4 {[%clk 0:03:00]}  e6 {[%clk 0:02:50]} 3. d4 {[%clk 0:03:00]}  Nf6 {[%clk 0:02:51]} 4. Nc3 {[%clk 0:02:59]}  Be7 {[%clk 0:02:49]} 5. Bg5 {[%clk 0:02:59]}  Nbd7 {[%clk 0:02:49]} 6. e3 {[%clk 0:02:59]}  h6 {[%clk 0:02:48]} 7. Bh4 {[%clk 0:02:59]}  O-O {[%clk 0:02:48]} 8. Bd3 {[%clk 0:02:58]}  c5 {[%clk 0:02:47]} 9. O-O {[%clk 0:02:56]}  b6 {[%clk 0:02:47]} 10. cxd5 {[%clk 0:02:49]}  Nxd5 {[%clk 0:02:46]} 11. Bxe7 {[%clk 0:02:48]}  Nxe7 {[%clk 0:02:47]} 12. Bc2 {[%clk 0:02:31]}  Bb7 {[%clk 0:02:45]} 13. Qd3 {[%clk 0:02:29]}  Nf6 {[%clk 0:02:45]} 14. Ne5 {[%clk 0:02:26]}  cxd4 {[%clk 0:02:41]} 15. exd4 {[%clk 0:02:26]}  Rc8 {[%clk 0:02:25]} 16. Ng4 {[%clk 0:02:23]}  Nf5 {[%clk 0:02:24]} 17. Nxf6+ {[%clk 0:02:05]}  Qxf6 {[%clk 0:02:24]} 18. d5 {[%clk 0:02:00]}  Rcd8 {[%clk 0:02:17]} 19. g4 {[%clk 0:01:54]}  Qg5 {[%clk 0:02:10]} 20. Kh1 {[%clk 0:01:51]}  Qxg4 {[%clk 0:02:08]} 21. Rg1 {[%clk 0:01:51]}  Qh5 {[%clk 0:01:58]} 22. Qe4 {[%clk 0:00:30]}  Rxd5 {[%clk 0:01:52]} 23. f3 {[%clk 0:00:15]}  Rd2 {[%clk 0:01:41]} 24. Rxg7+ {[%clk 0:00:12]}  Kxg7 {[%clk 0:01:30]} 25. Rg1+ {[%clk 0:00:09]}  Kh8 {[%clk 0:01:27]} 26. Rg2 {[%clk 0:00:00]}  Ng3+ {[%clk 0:01:21]} 0-1


[Site "https://www.chess.com"]

[Event "Titled Tuesday Blitz November 14 Late 2023"]
[White "Lymar, Vladislav"]
[Black "el_sporco"]
[WhiteFideId "14162180"]
[WhiteElo "2577"]
[BlackElo "2376"]
[Result "1-0"]
[Round "4"]
[TimeControl "180+1"]
[Date "2023.11.14"]
[WhiteClock "0:02:04"]
[BlackClock "0:01:43"]
[Board "88"]

1. d4 {[%clk 0:03:00]}  Nf6 {[%clk 0:02:57]} 2. c4 {[%clk 0:03:01]}  e6 {[%clk 0:02:57]} 3. Bf4 {[%clk 0:03:01]}  b6 {[%clk 0:02:56]} 4. a3 {[%clk 0:03:01]}  Bb7 {[%clk 0:02:56]} 5. Nc3 {[%clk 0:03:01]}  Be7 {[%clk 0:02:57]} 6. d5 {[%clk 0:03:01]}  O-O {[%clk 0:02:58]} 7. e4 {[%clk 0:03:01]}  d6 {[%clk 0:02:57]} 8. Bd3 {[%clk 0:02:59]}  Nbd7 {[%clk 0:02:56]} 9. h3 {[%clk 0:02:56]}  Nc5 {[%clk 0:02:53]} 10. Bc2 {[%clk 0:02:55]}  exd5 {[%clk 0:02:51]} 11. exd5 {[%clk 0:02:50]}  Nh5 {[%clk 0:02:50]} 12. Be3 {[%clk 0:02:49]}  g6 {[%clk 0:02:48]} 13. Nge2 {[%clk 0:02:49]}  Bg5 {[%clk 0:02:46]} 14. Bd4 {[%clk 0:02:41]}  Bf6 {[%clk 0:02:46]} 15. O-O {[%clk 0:02:40]}  Bxd4 {[%clk 0:02:44]} 16. Qxd4 {[%clk 0:02:41]}  Qf6 {[%clk 0:02:44]} 17. Qxf6 {[%clk 0:02:36]}  Nxf6 {[%clk 0:02:44]} 18. Nb5 {[%clk 0:02:34]}  Rfc8 {[%clk 0:02:41]} 19. Ned4 {[%clk 0:02:25]}  a6 {[%clk 0:02:37]} 20. Nc3 {[%clk 0:02:24]}  Re8 {[%clk 0:02:36]} 21. Rfe1 {[%clk 0:02:18]}  Kf8 {[%clk 0:02:29]} 22. b4 {[%clk 0:02:16]}  Ncd7 {[%clk 0:02:27]} 23. f4 {[%clk 0:02:16]}  Rxe1+ {[%clk 0:02:24]} 24. Rxe1 {[%clk 0:02:16]}  Re8 {[%clk 0:02:24]} 25. Rxe8+ {[%clk 0:02:16]}  Kxe8 {[%clk 0:02:10]} 26. Kf2 {[%clk 0:02:16]}  Ng8 {[%clk 0:02:10]} 27. Ne4 {[%clk 0:02:12]}  Ne7 {[%clk 0:02:04]} 28. Ba4 {[%clk 0:02:06]}  h6 {[%clk 0:01:43]} 29. Nf6+ {[%clk 0:02:04]} 1-0


[Site "https://www.chess.com"]

[Event "Titled Tuesday Blitz November 14 Late 2023"]
[White "Biernacki, Mark"]
[Black "Baches Garcia, Guillermo"]
[WhiteFideId "2082322"]
[BlackFideId "2209764"]
[WhiteElo "2344"]
[BlackElo "2528"]
[Result "0-1"]
[Round "4"]
[TimeControl "180+1"]
[Date "2023.11.14"]
[WhiteClock "0:00:11"]
[BlackClock "0:00:55"]
[Board "93"]

1. e4 {[%clk 0:02:47]}  d5 {[%clk 0:02:59]} 2. exd5 {[%clk 0:02:46]}  Qxd5 {[%clk 0:03:00]} 3. Nc3 {[%clk 0:02:45]}  Qa5 {[%clk 0:03:01]} 4. Bc4 {[%clk 0:02:41]}  Nf6 {[%clk 0:03:01]} 5. Nf3 {[%clk 0:02:35]}  Nc6 {[%clk 0:02:59]} 6. d4 {[%clk 0:02:35]}  Bg4 {[%clk 0:02:58]} 7. Be3 {[%clk 0:02:33]}  O-O-O {[%clk 0:02:53]} 8. Bxf7 {[%clk 0:02:15]}  e5 {[%clk 0:02:52]} 9. d5 {[%clk 0:01:33]}  e4 {[%clk 0:02:29]} 10. h3 {[%clk 0:01:02]}  exf3 {[%clk 0:02:29]} 11. hxg4 {[%clk 0:01:02]}  fxg2 {[%clk 0:02:25]} 12. Rg1 {[%clk 0:00:57]}  Bb4 {[%clk 0:02:19]} 13. Bd2 {[%clk 0:00:49]}  Nxd5 {[%clk 0:02:02]} 14. Nxd5 {[%clk 0:00:31]}  Rxd5 {[%clk 0:01:50]} 15. Bxd5 {[%clk 0:00:28]}  Re8+ {[%clk 0:01:44]} 16. Qe2 {[%clk 0:00:24]}  Bxd2+ {[%clk 0:01:28]} 17. Kd1 {[%clk 0:00:21]}  Rxe2 {[%clk 0:01:27]} 18. Kxe2 {[%clk 0:00:22]}  Qxd5 {[%clk 0:01:22]} 19. Rad1 {[%clk 0:00:21]}  Nd4+ {[%clk 0:01:11]} 20. Kxd2 {[%clk 0:00:21]}  Nf3+ {[%clk 0:01:08]} 21. Ke3 {[%clk 0:00:21]}  Qxd1 {[%clk 0:00:55]} 22. Rxd1 {[%clk 0:00:20]}  g1=Q {[%clk 0:00:56]} 23. Rxg1 {[%clk 0:00:20]}  Nxg1 {[%clk 0:00:56]} 24. f3 {[%clk 0:00:18]}  Nh3 {[%clk 0:00:56]} 25. f4 {[%clk 0:00:17]}  g5 {[%clk 0:00:56]} 26. f5 {[%clk 0:00:14]}  Kd8 {[%clk 0:00:56]} 27. Kf3 {[%clk 0:00:13]}  Ke7 {[%clk 0:00:56]} 28. Ke4 {[%clk 0:00:11]}  Nf4 {[%clk 0:00:55]} 0-1


[Site "https://www.chess.com"]

[Event "Titled Tuesday Blitz November 14 Late 2023"]
[White "Avalos Parra, Joao"]
[Black "Reprintsev, Alexander"]
[WhiteFideId "3402541"]
[BlackFideId "14100541"]
[WhiteElo "2332"]
[BlackElo "2517"]
[Result "1-0"]
[Round "4"]
[TimeControl "180+1"]
[Date "2023.11.14"]
[WhiteClock "0:01:25"]
[BlackClock "0:00:17"]
[Board "95"]

1. d4 {[%clk 0:03:00]}  d5 {[%clk 0:02:59]} 2. c4 {[%clk 0:03:01]}  e5 {[%clk 0:02:59]} 3. dxe5 {[%clk 0:03:00]}  d4 {[%clk 0:02:59]} 4. a3 {[%clk 0:03:01]}  Nc6 {[%clk 0:02:58]} 5. e3 {[%clk 0:03:01]}  Nge7 {[%clk 0:02:53]} 6. Be2 {[%clk 0:02:58]}  Bf5 {[%clk 0:02:32]} 7. Bd3 {[%clk 0:02:55]}  Nxe5 {[%clk 0:02:25]} 8. Bxf5 {[%clk 0:02:53]}  Nxf5 {[%clk 0:02:25]} 9. e4 {[%clk 0:02:15]}  Nd6 {[%clk 0:02:06]} 10. Nf3 {[%clk 0:02:15]}  Nxf3+ {[%clk 0:02:01]} 11. Qxf3 {[%clk 0:02:16]}  Nxc4 {[%clk 0:01:58]} 12. O-O {[%clk 0:02:16]}  Ne5 {[%clk 0:01:52]} 13. Qb3 {[%clk 0:02:15]}  Bd6 {[%clk 0:01:49]} 14. f4 {[%clk 0:02:14]}  Nc6 {[%clk 0:01:47]} 15. Qxb7 {[%clk 0:02:09]}  Na5 {[%clk 0:01:41]} 16. Qd5 {[%clk 0:02:06]}  c6 {[%clk 0:01:41]} 17. Qxd4 {[%clk 0:02:05]}  Nb3 {[%clk 0:01:39]} 18. Qxg7 {[%clk 0:02:05]}  Bc5+ {[%clk 0:01:31]} 19. Kh1 {[%clk 0:01:58]}  Qd4 {[%clk 0:01:31]} 20. Qh6 {[%clk 0:01:53]}  Nxa1 {[%clk 0:01:25]} 21. Qxc6+ {[%clk 0:01:52]}  Ke7 {[%clk 0:01:25]} 22. Nc3 {[%clk 0:01:48]}  Rad8 {[%clk 0:01:08]} 23. f5 {[%clk 0:01:35]}  Qd6 {[%clk 0:00:17]} 24. Nd5+ {[%clk 0:01:25]} 1-0


[Site "https://www.chess.com"]

[Event "Titled Tuesday Blitz November 14 Late 2023"]
[White "BardArtem"]
[Black "Buchenau, Frank"]
[BlackFideId "4604350"]
[WhiteElo "2822"]
[BlackElo "2417"]
[Result "1-0"]
[Round "4"]
[TimeControl "180+1"]
[Date "2023.11.14"]
[WhiteClock "0:01:18"]
[BlackClock "0:00:00"]
[Board "98"]

1. e4 {[%clk 0:03:00]}  e6 {[%clk 0:02:59]} 2. d4 {[%clk 0:03:01]}  d5 {[%clk 0:02:58]} 3. Nc3 {[%clk 0:03:01]}  Nf6 {[%clk 0:02:57]} 4. exd5 {[%clk 0:03:01]}  exd5 {[%clk 0:02:57]} 5. Bg5 {[%clk 0:03:00]}  Be7 {[%clk 0:02:55]} 6. Qd2 {[%clk 0:03:00]}  h6 {[%clk 0:02:53]} 7. Bh4 {[%clk 0:02:59]}  Ne4 {[%clk 0:02:50]} 8. Bxe7 {[%clk 0:02:54]}  Qxe7 {[%clk 0:02:48]} 9. Nxe4 {[%clk 0:02:52]}  Qxe4+ {[%clk 0:02:45]} 10. Ne2 {[%clk 0:02:52]}  O-O {[%clk 0:02:37]} 11. O-O-O {[%clk 0:02:52]}  Re8 {[%clk 0:02:30]} 12. Nc3 {[%clk 0:02:52]}  Qe6 {[%clk 0:02:09]} 13. Bd3 {[%clk 0:02:51]}  c6 {[%clk 0:02:02]} 14. Rde1 {[%clk 0:02:50]}  Qd7 {[%clk 0:02:01]} 15. Rxe8+ {[%clk 0:02:46]}  Qxe8 {[%clk 0:02:01]} 16. Re1 {[%clk 0:02:47]}  Qd8 {[%clk 0:01:58]} 17. Qf4 {[%clk 0:02:41]}  Be6 {[%clk 0:01:49]} 18. Ne2 {[%clk 0:02:24]}  Nd7 {[%clk 0:01:47]} 19. h4 {[%clk 0:02:23]}  Qa5 {[%clk 0:01:43]} 20. Nc3 {[%clk 0:02:20]}  b5 {[%clk 0:01:25]} 21. a3 {[%clk 0:02:12]}  b4 {[%clk 0:01:22]} 22. axb4 {[%clk 0:02:13]}  Qxb4 {[%clk 0:01:22]} 23. Re3 {[%clk 0:02:13]}  Rb8 {[%clk 0:01:20]} 24. Nd1 {[%clk 0:02:14]}  c5 {[%clk 0:01:05]} 25. Rg3 {[%clk 0:02:01]}  Kh8 {[%clk 0:00:56]} 26. c3 {[%clk 0:01:52]}  Qb6 {[%clk 0:00:48]} 27. Bc2 {[%clk 0:01:33]}  a5 {[%clk 0:00:38]} 28. Ba4 {[%clk 0:01:20]}  Rc8 {[%clk 0:00:17]} 29. Bxd7 {[%clk 0:01:17]}  Bxd7 {[%clk 0:00:00]} 30. Qxf7 {[%clk 0:01:18]} 1-0


[Site "https://www.chess.com"]